bitfinex/quotes_SOLUSD_20220104
["timestamp","ask_amount","ask_price","bid_price","bid_amount"]
[1641325847420,86.4653,168.37,168.23,53.91030352]
[1641325848028,86.4653,168.37,168.23,53.65030352]
[1641325849526,86.4653,168.37,168.23,53.91030352]
[1641325850422,86.4653,168.37,168.23,53.65030352]
[1641325851228,87.91380786,168.37,168.23,30.80970352]
[1641325852423,87.91380786,168.37,168.22,23.8738]
[1641325852623,87.91380786,168.37,168.23,0.26]
[1641325852823,87.91380786,168.37,168.22,24.1338]
[1641325853928,87.91380786,168.37,168.22,0.26]
[1641325854327,87.91380786,168.37,168.21,29.52193029]
[1641325855528,1.325,168.36,168.22,1.3637]
[1641325855728,7.1,168.35,168.22,1.3637]
[1641325855930,12.48518093,168.34,168.22,1.6237]
[1641325856132,7.1,168.33,168.22,1.3637]
[1641325856330,3.02013379,168.32,168.19,92.7]
[1641325856533,7.1,168.31,168.2,1.257]
[1641325856931,7.36,168.31,168.2,1.257]
[1641325859161,7.36,168.31,168.2,1.517]
[1641325859961,2.41955558,168.3,168.2,1.517]
[1641325860162,3.67305558,168.3,168.2,1.517]
[1641325860363,3.93305558,168.3,168.2,1.517]
[1641325862462,3.67305558,168.3,168.2,1.517]
[1641325862665,2.41955558,168.3,168.18,23.39351997]
[1641325862865,7.1,168.29,168.12,1.3337]
[1641325863062,7.1,168.29,168.15,1.3372]
[1641325863063,1.3116,168.28,168.15,1.3372]
[1641325863263,1.3116,168.28,168.12,24.7564]
[1641325863264,7.1,168.27,168.12,24.7564]
[1641325863462,7.1,168.27,168.13,1.3581]
[1641325863763,33.38313792,168.27,168.14,30.62378284]
[1641325864763,1.3457,168.26,168.15,25.864]
[1641325864963,8.7057,168.26,168.15,0.26]
[1641325865365,8.7057,168.26,168.14,30.88378284]
[1641325865567,8.7057,168.26,168.14,0.26]
[1641325865766,73.4283,168.25,168.1,1.3331]
[1641325865967,9.40887796,168.24,168.1,1.3331]
[1641325866170,7.1,168.24,168.1,1.3331]
[1641325866570,7.1,168.28,168.11,7.1]
[1641325866767,7.1,168.28,168.12,23.9886]
[1641325866973,7.1,168.28,168.12,24.2486]
[1641325867167,27.11041981,168.27,168.13,26.14350252]
[1641325867367,27.11041981,168.27,168.14,24.6653]
[1641325867566,27.37041981,168.27,168.14,24.9253]
[1641325867968,27.87041981,168.27,168.14,25.4253]
[1641325868568,27.87041981,168.27,168.15,1.2484]
[1641325868967,2.93789669,168.27,168.15,1.5084]
[1641325869371,2.93789669,168.27,168.15,2.0084]
[1641325870468,2.67789669,168.27,168.15,2.0084]
[1641325870868,2.67789669,168.27,168.15,1.5084]
[1641325871068,2.67789669,168.27,168.15,2.0084]
[1641325871271,2.93789669,168.27,168.15,2.0084]
[1641325871471,34.74080836,168.27,168.15,2.0084]
[1641325871672,34.74080836,168.27,168.15,1.5084]
[1641325872971,2.93789669,168.27,168.15,1.5084]
[1641325873571,2.67789669,168.27,168.15,1.5084]
[1641325873771,2.67789669,168.27,168.15,2.0084]
[1641325873972,2.93789669,168.27,168.15,1.5084]
[1641325874371,2.67789669,168.27,168.15,2.0084]
[1641325874576,2.93789669,168.27,168.15,2.0084]
[1641325874772,2.93789669,168.27,168.15,1.5084]
[1641325874973,2.93789669,168.27,168.15,2.0084]
[1641325875677,2.67789669,168.27,168.15,2.0084]
[1641325876978,2.67789669,168.27,168.15,1.5084]
[1641325877379,2.93789669,168.27,168.15,1.5084]
[1641325877778,2.93789669,168.27,168.15,1.2484]
[1641325878380,2.67789669,168.27,168.15,1.2484]
[1641325878579,2.93789669,168.27,168.15,1.2484]
[1641325879384,2.93789669,168.27,168.15,1.5084]
[1641325879583,2.93789669,168.27,168.15,1.2484]
[1641325879785,2.93789669,168.27,168.15,1.5084]
[1641325882985,2.67789669,168.27,168.15,1.5084]
[1641325883184,2.67789669,168.27,168.15,2.95690786]
[1641325883409,2.67789669,168.27,168.15,1.5084]
[1641325883787,7.1,168.26,168.15,1.2484]
[1641325884188,7.6,168.26,168.15,1.2484]
[1641325884386,7.86,168.26,168.15,1.2484]
[1641325884992,7.86,168.26,168.14,24.6653]
[1641325885188,1.44850786,168.25,168.09,32.33290786]
[1641325885387,116.84190786,168.25,168.1,25.0344]
[1641325885588,117.10190786,168.25,168.1,25.0344]
[1641325885788,117.10190786,168.25,168.1,25.5344]
[1641325885989,1.2962,168.24,168.1,54.55325415]
[1641325886188,7.1,168.23,168.1,54.55325415]
[1641325886388,13.20082702,168.22,168.1,54.55325415]
[1641325886789,13.96082702,168.22,168.1,25.5344]
[1641325886987,2.81867156,168.21,168.1,25.5344]
[1641325887188,3.31867156,168.21,168.1,25.0344]
[1641325887388,3.57867156,168.21,168.1,25.0344]
[1641325887889,12.12717942,168.21,168.07,1.3317]
[1641325888088,23.7176,168.2,168.1,1.2912]
[1641325888289,24.2176,168.2,168.1,1.2912]
[1641325888490,24.4776,168.2,168.1,1.2912]
[1641325888689,25.7819,168.2,168.1,1.2912]
[1641325889093,25.7819,168.2,168.1,1.5512]
[1641325889989,25.7819,168.2,168.1,0.26]
[1641325890291,25.7819,168.2,168.07,2.8573]
[1641325891390,25.7819,168.2,168.08,22.6898]
[1641325891591,25.7819,168.2,168.08,22.9498]
[1641325892292,7.1,168.19,168.08,0.26]
[1641325892495,7.36,168.19,168.06,26.3118]
[1641325892693,7.86,168.19,168.06,26.3118]
[1641325892895,7.86,168.19,168.06,27.0718]
[1641325893094,7.86,168.19,168.06,26.8118]
[1641325893695,1.3197,168.18,168.06,26.8118]
[1641325893896,8.9197,168.18,168.06,26.3118]
[1641325894100,9.1797,168.18,168.06,26.3118]
[1641325894299,9.1797,168.18,168.04,1.3001]
[1641325894499,24.6436,168.17,168.03,117.5626]
[1641325894710,2.35660081,168.15,168.03,117.5626]
[1641325894899,9.11580081,168.15,168.03,117.5626]
[1641325895099,32.40749183,168.14,168.03,117.5626]
[1641325895303,32.90749183,168.14,168.03,117.5626]
[1641325895602,33.16749183,168.14,168.03,92.7]
[1641325895799,34.61599969,168.14,168.03,92.7]
[1641325895999,33.16749183,168.14,168.03,92.7]
[1641325897100,7.86,168.14,168.03,92.7]
[1641325897504,7.86,168.14,168.03,92.96]
[1641325898204,7.6,168.14,168.03,92.96]
[1641325898424,7.1,168.14,168.04,1.44850786]
[1641325898624,72.9208,168.17,168.04,1.44850786]
[1641325898825,2.20772165,168.16,168.05,1.2663]
[1641325899025,2.20772165,168.16,168.05,1.5263]
[1641325899224,72.9208,168.17,168.06,1.44850786]
[1641325899426,33.43048822,168.21,168.06,1.94850786]
[1641325899627,108.98518822,168.21,168.06,2.20850786]
[1641325899829,109.48518822,168.21,168.06,2.20850786]
[1641325900230,2.38695264,168.2,168.07,1.3585]
[1641325900528,2.88695264,168.2,168.07,1.6185]
[1641325901129,3.14695264,168.2,168.07,1.6185]
[1641325901529,27.37685264,168.2,168.07,1.6185]
[1641325901731,27.37685264,168.2,168.07,2.1185]
[1641325902229,27.37685264,168.2,168.07,1.6185]
[1641325902428,27.37685264,168.2,168.07,0.26]
[1641325902828,27.37685264,168.2,168.06,1.3412]
[1641325903029,27.37685264,168.2,168.06,1.6012]
[1641325904031,27.37685264,168.2,168.06,0.26]
[1641325904230,7.1,168.19,168.05,24.5353]
[1641325904430,7.6,168.19,168.05,25.0353]
[1641325904630,7.6,168.19,168.05,26.3991]
[1641325904631,7.86,168.19,168.05,26.3991]
[1641325905833,7.6,168.19,168.05,26.3991]
[1641325906030,7.6,168.19,168.05,27.84760786]
[1641325906232,2.38695264,168.2,168.05,27.84760786]
[1641325906233,2.38695264,168.2,168.06,7.1]
[1641325906432,2.38695264,168.2,168.07,24.5835]
[1641325906632,3.14695264,168.2,168.07,33.13200786]
[1641325906835,2.38695264,168.2,168.07,33.89200786]
[1641325907033,2.38695264,168.2,168.08,2.74500786]
[1641325907233,2.38695264,168.2,168.09,28.67506547]
[1641325907434,2.88695264,168.2,168.1,23.2131]
[1641325907834,2.88695264,168.2,168.1,23.9731]
[1641325908438,2.88695264,168.2,168.1,23.2131]
[1641325908635,2.88695264,168.2,168.08,1.2965]
[1641325909036,3.14695264,168.2,168.08,1.2965]
[1641325909236,2.88695264,168.2,168.05,25.4998]
[1641325909436,2.88695264,168.2,168.07,23.384588]
[1641325909636,2.88695264,168.2,168.08,23.884]
[1641325910136,2.88695264,168.2,168.08,24.144]
[1641325910337,2.88695264,168.2,168.08,25.4413]
[1641325910537,2.38695264,168.2,168.08,25.4413]
[1641325910838,2.88695264,168.2,168.08,25.9413]
[1641325913339,2.88695264,168.2,168.08,25.6813]
[1641325913943,2.38695264,168.2,168.08,25.6813]
[1641325914344,2.38695264,168.2,168.08,27.12980786]
[1641325914345,2.88695264,168.2,168.08,27.12980786]
[1641325914643,2.38695264,168.2,168.08,27.38980786]
[1641325914843,2.88695264,168.2,168.08,27.38980786]
[1641325915044,2.88695264,168.2,168.08,25.4413]
[1641325915359,2.88695264,168.2,168.08,25.1813]
[1641325915544,3.14695264,168.2,168.08,23.884]
[1641325915746,14.0001193,168.19,168.08,23.884]
[1641325915946,14.5001193,168.19,168.08,23.884]
[1641325916249,14.7601193,168.19,168.08,23.884]
[1641325917174,14.7601193,168.19,168.08,24.144]
[1641325919551,0.76,168.19,168.08,24.144]
[1641325919750,26.05205264,168.2,168.08,24.144]
[1641325919951,2.88695264,168.2,168.08,24.144]
[1641325920350,7.1,168.23,168.08,33.37450786]
[1641325920351,29.6576,168.23,168.08,33.37450786]
[1641325920551,0.5,168.22,168.09,1.3631]
[1641325920949,0.5,168.22,168.1,1.44850786]
[1641325921151,74.7267,168.24,168.1,1.44850786]
[1641325921351,2.1451883,168.23,168.1,2.20850786]
[1641325921754,2.6451883,168.23,168.1,2.20850786]
[1641325923052,2.6451883,168.23,168.1,0.76]
[1641325923452,2.6451883,168.23,168.09,2.0623]
[1641325923653,2.6451883,168.23,168.09,1.5623]
[1641325923852,2.6451883,168.23,168.09,2.0623]
[1641325924252,2.6451883,168.23,168.1,1.44850786]
[1641325924452,2.6451883,168.23,168.1,2.20850786]
[1641325925481,0.5,168.23,168.11,1.44850786]
[1641325925682,23.5127,168.27,168.11,31.41610786]
[1641325925980,24.0127,168.27,168.12,1.235]
[1641325926182,0.5,168.27,168.12,2.68350786]
[1641325926381,0.5,168.27,168.13,23.6126]
[1641325926584,2.89398078,168.26,168.14,25.90672629]
[1641325926783,2.89398078,168.26,168.15,24.9137]
[1641325926983,2.89398078,168.26,168.15,25.1737]
[1641325927290,2.89398078,168.26,168.15,25.6737]
[1641325927484,2.89398078,168.26,168.15,34.1142]
[1641325929588,3.39398078,168.26,168.15,33.6142]
[1641325929790,11.3102187,168.26,168.15,33.6142]
[1641325930184,11.3102187,168.26,168.15,26.5142]
[1641325930386,11.3102187,168.26,168.15,26.2542]
[1641325931586,12.75872656,168.26,168.15,26.5142]
[1641325931987,11.3102187,168.26,168.15,26.5142]
[1641325933087,11.3102187,168.26,168.15,0.26]
[1641325933290,19.85872656,168.26,168.15,0.26]
[1641325933489,19.85872656,168.26,168.11,24.4551]
[1641325933989,79.9439,168.25,168.11,24.4551]
[1641325934390,80.7039,168.25,168.11,24.4551]
[1641325934589,81.9898,168.25,168.12,1.2619]
[1641325934991,81.9898,168.25,168.12,1.5219]
[1641325935389,80.4439,168.25,168.12,1.5219]
[1641325935591,79.9439,168.25,168.12,2.0219]
[1641325935789,10.5502187,168.26,168.12,2.0219]
[1641325935989,11.0502187,168.26,168.12,2.0219]
[1641325936789,3.39398078,168.26,168.12,2.0219]
[1641325936989,2.89398078,168.26,168.13,7.1]
[1641325937189,2.89398078,168.26,168.13,7.6]
[1641325937390,2.89398078,168.26,168.13,7.86]
[1641325938193,2.89398078,168.26,168.14,1.3142]
[1641325938392,2.89398078,168.26,168.14,1.8142]
[1641325938594,2.89398078,168.26,168.14,2.0742]
[1641325938794,2.89398078,168.26,168.14,9.1742]
[1641325939894,3.39398078,168.26,168.14,9.1742]
[1641325940097,2.89398078,168.26,168.14,9.1742]
[1641325942700,3.65398078,168.26,168.14,9.1742]
[1641325942895,3.65398078,168.26,168.14,2.0742]
[1641325944198,4.99638078,168.26,168.14,2.0742]
[1641325944398,4.99638078,168.26,168.14,1.8142]
[1641325945600,4.99638078,168.26,168.14,2.0742]
[1641325947005,6.44488864,168.26,168.14,1.8142]
[1641325947302,7.1,168.25,168.11,47.5174]
[1641325947502,7.1,168.25,168.08,7.1]
[1641325947503,7.36,168.25,168.08,8.4201]
[1641325947704,7.86,168.25,168.09,23.0408]
[1641325947902,7.86,168.25,168.09,23.5408]
[1641325948103,7.86,168.25,168.1,31.69235424]
[1641325948306,13.07047808,168.23,168.1,31.69235424]
[1641325948507,20.93047808,168.23,168.1,31.95235424]
[1641325948903,20.93047808,168.23,168.1,32.45235424]
[1641325949104,20.93047808,168.23,168.1,31.95235424]
[1641325949504,20.93047808,168.23,168.11,1.3579]
[1641325949904,20.93047808,168.23,168.11,1.6179]
[1641325950930,20.93047808,168.23,168.11,0.69882]
[1641325951332,20.93047808,168.23,168.1,32.45235424]
[1641325951531,20.93047808,168.23,168.1,31.95235424]
[1641325951532,22.37898594,168.23,168.1,31.95235424]
[1641325951934,1.2691,168.22,168.1,31.95235424]
[1641325952333,2.0291,168.22,168.1,31.95235424]
[1641325952840,2.0291,168.22,168.1,32.45235424]
[1641325953033,2.0291,168.22,168.11,1.3056]
[1641325953438,2.0291,168.22,168.11,1.5656]
[1641325954036,1.7691,168.22,168.11,1.5656]
[1641325954234,2.0291,168.22,168.11,1.5656]
[1641325956238,4.45107633,168.26,168.11,2.0656]
[1641325956438,4.95107633,168.26,168.11,33.5508]
[1641325957141,3.39398078,168.26,168.11,33.5508]
[1641325957844,3.65398078,168.26,168.11,33.5508]
[1641325958239,28.44918078,168.26,168.11,33.5508]
[1641325958638,30.00627633,168.26,168.11,33.5508]
[1641325958843,1.3471,168.25,168.11,33.5508]
[1641325959038,1.6071,168.25,168.11,33.5508]
[1641325959242,2.1071,168.25,168.11,33.2908]
[1641325959539,7.1,168.24,168.11,25.6908]
[1641325959739,7.1,168.24,168.11,1.3056]
[1641325959939,74.8208,168.23,168.11,1.3056]
[1641325960140,76.37789555,168.23,168.11,1.3056]
[1641325960343,84.23789555,168.23,168.08,22.9571]
[1641325960541,1.3075,168.22,168.09,1.2558]
[1641325960741,1.3075,168.22,168.1,30.35844448]
[1641325960943,2.0675,168.22,168.1,30.85844448]
[1641325961142,2.0675,168.22,168.1,31.11844448]
[1641325961845,2.0675,168.22,168.11,1.2753]
[1641325962142,2.0675,168.22,168.11,1.5353]
[1641325963243,1.8075,168.22,168.11,25.5078]
[1641325963444,74.8208,168.23,168.11,26.0078]
[1641325963642,75.3208,168.23,168.11,25.5078]
[1641325963843,75.3208,168.23,168.11,26.0078]
[1641325965243,1.2622,168.22,168.11,26.0078]
[1641325965446,1.7622,168.22,168.11,26.0078]
[1641325966445,2.0222,168.22,168.11,26.0078]
[1641325966644,2.0222,168.22,168.11,25.5078]
[1641325967947,2.0222,168.22,168.11,26.0078]
[1641325970252,2.0222,168.22,168.11,25.5078]
[1641325974856,2.0222,168.22,168.11,1.5353]
[1641325978488,1.7622,168.22,168.11,1.5353]
[1641325978890,1.7622,168.22,168.11,2.0353]
[1641325979688,74.8208,168.23,168.11,9.1183]
[1641325979889,1.55709555,168.25,168.11,16.2183]
[1641325980090,1.55709555,168.25,168.12,22.6048]
[1641325980291,1.55709555,168.25,168.13,7.1]
[1641325980492,1.55709555,168.26,168.14,24.081]
[1641325980692,1.55709555,168.26,168.15,1.3582]
[1641325980899,1.55709555,168.26,168.15,1.8582]
[1641325981094,1.55709555,168.26,168.16,30.12181024]
[1641325981293,3.96933814,168.26,168.17,24.8153]
[1641325981493,2.41224259,168.26,168.17,25.0753]
[1641325981693,2.41224259,168.26,168.17,25.5753]
[1641325981894,2.41224259,168.26,168.17,26.8493]
[1641325985400,24.3394,168.3,168.17,26.8493]
[1641325985801,24.8394,168.3,168.17,26.8493]
[1641325986500,2.20823101,168.29,168.17,26.8493]
[1641325986902,2.70823101,168.29,168.17,26.8493]
[1641325987503,2.20823101,168.29,168.17,26.8493]
[1641325990004,2.20823101,168.29,168.18,7.1]
[1641325990404,2.20823101,168.29,168.19,23.1848]
[1641325990607,2.20823101,168.29,168.19,23.4448]
[1641325990805,2.20823101,168.29,168.19,23.9448]
[1641325991207,2.20823101,168.29,168.2,1.3412]
[1641325991406,2.20823101,168.29,168.2,1.8412]
[1641325991605,2.20823101,168.29,168.2,2.1012]
[1641326000814,2.20823101,168.29,168.2,1.8412]
[1641326002013,2.20823101,168.29,168.2,2.1012]
[1641326009851,2.20823101,168.29,168.2,9.2012]
[1641326011452,75.9101,168.31,168.2,9.2012]
[1641326011651,75.9101,168.31,168.21,24.74250786]
[1641326011953,0.02,168.35,168.22,7.1]
[1641326012149,0.02,168.35,168.23,24.4355]
[1641326012353,2.82419555,168.36,168.25,27.77548777]
[1641326012555,2.72310219,168.35,168.26,23.388]
[1641326012951,2.72310219,168.35,168.26,24.148]
[1641326013152,2.72310219,168.35,168.26,25.4784]
[1641326014353,2.72310219,168.35,168.26,32.5784]
[1641326015155,73.3062,168.39,168.26,32.5784]
[1641326015356,1.55709555,168.41,168.26,39.79290786]
[1641326015557,1.55709555,168.41,168.26,116.57020786]
[1641326015758,1.55709555,168.41,168.26,126.3839785]
[1641326015955,1.55709555,168.41,168.26,224.55484014]
[1641326016158,1.55709555,168.43,168.27,5.68469378]
[1641326016354,1.55709555,168.43,168.28,53.9164]
[1641326016555,1.55709555,168.43,168.28,74.89954014]
[1641326016756,1.55709555,168.43,168.29,76.10697228]
[1641326016955,1.55709555,168.43,168.31,59.16]
[1641326017160,1.55709555,168.43,168.32,57.31543088]
[1641326017358,2.37391537,168.47,168.34,8.9056]
[1641326017656,2.37391537,168.47,168.35,7.1]
[1641326017854,2.37391537,168.47,168.35,12.945]
[1641326018055,2.37391537,168.47,168.35,14.65350786]
[1641326018255,2.37391537,168.47,168.35,39.41090786]
[1641326019456,2.37391537,168.47,168.35,37.9624]
[1641326024161,2.37391537,168.47,168.35,37.7024]
[1641326026866,2.37391537,168.47,168.35,37.9624]
[1641326027068,2.37391537,168.47,168.36,1.3307]
[1641326027269,2.37391537,168.47,168.37,7.1]
[1641326027667,1.2758,168.49,168.37,7.86]
[1641326027870,1.2758,168.49,168.38,24.7056]
[1641326028071,102.1439,168.5,168.39,7.1]
[1641326028270,102.1439,168.5,168.39,8.4435]
[1641326028469,102.1439,168.5,168.39,9.2035]
[1641326028470,77.1966,168.5,168.39,9.2035]
[1641326028670,77.1966,168.5,168.4,24.37097987]
[1641326028869,77.1966,168.5,168.4,49.42877987]
[1641326029070,77.1966,168.5,168.4,49.68877987]
[1641326030096,77.1966,168.5,168.4,25.13097987]
[1641326030695,77.1966,168.5,168.4,0.26]
[1641326031195,77.1966,168.5,168.37,7.36]
[1641326031596,77.6966,168.5,168.37,7.36]
[1641326031795,1.3065,168.49,168.38,48.34739879]
[1641326032095,1.3065,168.49,168.38,48.60739879]
[1641326032298,1.3065,168.49,168.38,49.10739879]
[1641326032498,1.3065,168.49,168.39,1.27]
[1641326032700,1.8065,168.49,168.39,1.27]
[1641326032898,1.3065,168.49,168.39,2.03]
[1641326033099,1.8065,168.49,168.39,2.03]
[1641326033299,1.3065,168.49,168.39,2.03]
[1641326037003,77.1966,168.5,168.4,7.1]
[1641326037405,77.1966,168.5,168.4,7.86]
[1641326039314,77.1966,168.5,168.4,7.36028095]
[1641326041308,78.5284,168.5,168.4,7.36028095]
[1641326041710,9.74742287,168.49,168.4,7.36028095]
[1641326041910,9.74742287,168.49,168.4,7.10028095]
[1641326042510,10.24742287,168.49,168.4,7.10028095]
[1641326043311,10.24742287,168.49,168.4,7.36028095]
[1641326043710,10.24742287,168.49,168.4,7.10028095]
[1641326043910,10.24742287,168.49,168.35,27.0601649]
[1641326044110,24.4404,168.48,168.35,27.0601649]
[1641326044310,24.4404,168.48,168.35,27.5601649]
[1641326044511,25.2004,168.48,168.35,27.5601649]
[1641326044711,1.2801,168.47,168.35,27.0601649]
[1641326044912,1.7801,168.47,168.35,27.0601649]
[1641326045514,1.7801,168.47,168.35,27.3201649]
[1641326045913,1.7801,168.47,168.36,23.6899]
[1641326046114,1.7801,168.47,168.36,23.9499]
[1641326046313,1.7801,168.47,168.32,1.44850786]
[1641326046714,1.7801,168.47,168.3,8.4316]
[1641326047120,1.7801,168.47,168.31,24.996]
[1641326047318,1.7801,168.47,168.32,27.6981412]
[1641326047714,1.7801,168.47,168.32,28.1981412]
[1641326047917,1.7801,168.47,168.32,28.4581412]
[1641326048120,1.7801,168.47,168.33,25.3043]
[1641326048517,1.7801,168.47,168.33,26.0643]
[1641326049522,1.2801,168.47,168.33,31.0303]
[1641326052421,1.2801,168.47,168.34,7.1]
[1641326052822,1.2801,168.47,168.35,24.8747]
[1641326053024,1.2801,168.47,168.35,31.5017]
[1641326053224,1.2801,168.47,168.35,32.0017]
[1641326053422,1.2801,168.47,168.36,1.2518]
[1641326053822,1.2801,168.47,168.36,2.0118]
[1641326054422,1.2801,168.47,168.36,1.7518]
[1641326054821,1.7801,168.47,168.36,1.7518]
[1641326055426,1.2801,168.47,168.36,1.7518]
[1641326055825,1.2801,168.47,168.37,7.1]
[1641326056048,78.87274888,168.5,168.37,7.36]
[1641326056247,77.1966,168.5,168.38,24.4974]
[1641326056449,77.1966,168.5,168.39,7.1]
[1641326056647,77.1966,168.5,168.41,29.09607533]
[1641326056847,77.1966,168.5,168.41,36.69607533]
[1641326057047,77.1966,168.5,168.41,36.95607533]
[1641326057647,26.11704888,168.54,168.41,36.95607533]
[1641326057648,1.69614888,168.54,168.41,36.95607533]
[1641326057848,1.69614888,168.54,168.42,23.5974]
[1641326058047,1.69614888,168.54,168.43,7.1]
[1641326058251,4.20154888,168.55,168.43,15.5192]
[1641326058449,4.20154888,168.55,168.43,16.2792]
[1641326058850,2.91244888,168.55,168.43,16.2792]
[1641326059248,1.67614888,168.56,168.45,0.32120971]
[1641326059447,1.67614888,168.56,168.46,7.1]
[1641326059848,1.67614888,168.56,168.46,7.86]
[1641326060052,1.67614888,168.62,168.46,7.86]
[1641326060249,2.69074925,168.59,168.46,7.86]
[1641326060448,2.69074925,168.59,168.48,28.51224595]
[1641326060651,1.3349,168.61,168.49,7.1]
[1641326060850,1.67614888,168.62,168.5,22.7416]
[1641326061055,104.5058,168.64,168.51,7.1]
[1641326061252,104.5058,168.64,168.52,24.7724]
[1641326061453,81.2544,168.64,168.52,37.7524]
[1641326061652,81.2544,168.64,168.52,38.2524]
[1641326061851,79.9753,168.64,168.52,38.2524]
[1641326062250,79.9753,168.64,168.52,39.70090786]
[1641326062453,1.2565,168.69,168.52,39.70090786]
[1641326062652,103.2767,168.72,168.52,39.70090786]
[1641326062852,79.7237,168.72,168.53,1.3134]
[1641326063057,79.7237,168.72,168.54,7.1]
[1641326063257,79.7237,168.72,168.55,134.71678809]
[1641326063456,0.02,168.72,168.56,7.1]
[1641326063661,92.72,168.72,168.56,13.72250786]
[1641326063861,92.72,168.72,168.57,1.2722]
[1641326064060,92.72,168.72,168.58,7.1]
[1641326064260,92.7,168.72,168.6,8.8915]
[1641326064462,92.7,168.72,168.61,7.1]
[1641326064666,81.25524888,168.79,168.62,30.57382349]
[1641326064960,79.5791,168.79,168.63,7.1]
[1641326065260,79.5791,168.79,168.63,8.54850786]
[1641326065462,79.5791,168.79,168.63,7.86]
[1641326065661,2.17671146,168.78,168.63,7.86]
[1641326066462,2.67671146,168.78,168.63,7.86]
[1641326066863,2.17671146,168.78,168.63,7.86]
[1641326067464,3.62521932,168.78,168.63,7.6]
[1641326067665,4.12521932,168.78,168.63,7.6]
[1641326068668,4.12521932,168.78,168.63,7.86]
[1641326070274,2.17671146,168.78,168.63,7.86]
[1641326070676,2.17671146,168.78,168.63,7.6]
[1641326070876,4.38521932,168.78,168.63,7.1]
[1641326071075,4.38521932,168.78,168.63,7.6]
[1641326071483,3.88521932,168.78,168.63,7.6]
[1641326071676,2.67671146,168.78,168.63,7.6]
[1641326072081,2.17671146,168.78,168.63,7.86]
[1641326072680,2.67671146,168.78,168.63,7.86]
[1641326073379,2.67671146,168.78,168.63,7.6]
[1641326073981,2.17671146,168.78,168.63,7.6]
[1641326074581,1.44850786,168.77,168.63,7.6]
[1641326074805,2.17671146,168.78,168.63,7.6]
[1641326075604,2.17671146,168.78,168.63,9.04850786]
[1641326076211,2.17671146,168.78,168.63,9.30850786]
[1641326076404,2.17671146,168.78,168.63,15.50050786]
[1641326076608,2.17671146,168.78,168.63,38.87360786]
[1641326077305,2.17671146,168.78,168.64,1.356]
[1641326077506,2.17671146,168.78,168.65,7.1]
[1641326077705,2.17671146,168.78,168.65,8.54850786]
[1641326077905,2.17671146,168.78,168.65,9.30850786]
[1641326078305,2.17671146,168.78,168.66,1.44850786]
[1641326078505,2.17671146,168.78,168.67,7.1]
[1641326078706,2.17671146,168.78,168.67,12.593]
[1641326078905,1.2908,168.82,168.67,14.80150786]
[1641326079108,76.8929,168.83,168.69,22.56915348]
[1641326079304,1.268,168.85,168.7,7.1]
[1641326079505,1.3346,168.87,168.7,8.80850786]
[1641326079707,1.3346,168.87,168.71,1.2798]
[1641326079910,2.42418137,168.86,168.72,7.1]
[1641326080107,2.42418137,168.86,168.72,7.36]
[1641326080308,2.42418137,168.86,168.72,7.86]
[1641326081614,10.51879576,168.86,168.72,7.86]
[1641326081812,11.27879576,168.86,168.72,7.86]
[1641326082414,18.37879576,168.86,168.72,0.76]
[1641326082619,18.37879576,168.86,168.72,0.5]
[1641326082816,10.28418137,168.86,168.69,30.42915348]
[1641326083015,9.78418137,168.86,168.69,30.42915348]
[1641326083214,10.28418137,168.86,168.69,30.42915348]
[1641326086820,11.53128137,168.86,168.69,30.42915348]
[1641326088720,11.53128137,168.86,168.69,30.16915348]
[1641326090020,11.53128137,168.86,168.69,30.42915348]
[1641326091423,11.27128137,168.86,168.69,30.42915348]
[1641326091622,10.77128137,168.86,168.69,30.42915348]
[1641326091825,11.27128137,168.86,168.7,1.3626]
[1641326092022,10.77128137,168.86,168.7,9.2226]
[1641326092821,11.03128137,168.86,168.7,9.2226]
[1641326094253,11.53128137,168.86,168.7,9.2226]
[1641326094454,11.03128137,168.86,168.7,9.2226]